{"text_format":"3","workbook":"xlsx","n_sheets":1,"sheets":["실태조사(위원회별)(작성대상)"],"not_rendered":{"defined_names":1},"read":"whole","date_system":"1900"}

{"sheet":"실태조사(위원회별)(작성대상)","index":0,"n_rows":195,"n_cols":15,"rows_kept":195,"merged":[[1,0,4,0],[1,1,3,1],[1,2,3,2],[1,3,1,5],[1,6,1,13],[1,14,4,14],[2,3,3,3],[2,4,3,4],[2,5,3,5],[2,6,2,8],[2,9,2,11],[2,12,3,12],[2,13,3,13]]}
[null,"지방자치단체 위원회 운영 현황('25.8.1. 기준)"]
["연번","소관부서","위원회명","설치근거(A) ",null,null,"구성형태(D)",{"$nulls":7},"비고"]
[{"$nulls":3},"최상위\n근거 법규\n유형\n(택일)","최상위 \n근거 법규명","하위\n근거 법규명","총 위원수(명)",null,null,"위원 중 여성 위원수(명)",null,null,"위원 중\n지방의원수(명)","위원\n임기(년)"]
[{"$nulls":6},"계","당연직","위촉직","계","당연직","위촉직"]
[{"$nulls":3},"법령, 조례, 규칙중 택 1"]
[null,null,{"$f":"SUBTOTAL(3,C7:C4650)","v":176},176,171,106,172,171,170,161,143,166,170,170,0]
[1,"감사담당관","공직자윤리위원회","법령","공직자윤리법 제9조","여수시 공직자윤리위원회 구성과 운영에 관한 조례 제2조",7,1,6,1,0,2,1,2]
[2,"감사담당관","적극행정 지원위원회","법령","지방공무원 적극행정 운영규정 제10조","여수시 적극행정 운영조례 제6조",15,7,8,7,2,5,0,3]
[3,"건강증진과","건강생활\n실천 협의회","법령","국민건강증진법 제10조","여수시 건강도시 조성 및 건강생활실천협의회 설치 등에 관한 조례 제10조",13,4,9,8,3,5,2,2]
[4,"건강증진과","정신건강사업 운영위원회","기타","정신건강사업 안내(보건복지부 지침)","여수시 정신건강복지센터 및 중독관리통합지원센터 설치 및 운영 조례 제9조",8,3,5,4,2,2,0,2]
[5,"건강증진과","정신건강위기대응협의체","조례","여수시 정신건강 위기대응체계 구축에 관한 조례 제4조",null,10,2,8,7,2,5,1,2]
[6,"건설과","기술자문위원회","법령","건설기술진흥법 제6조","여수시기술자문위원회운영 조례 제2조",{"$f":"H12+I12","v":99},10,89,{"$f":"K12+L12","v":0},0,0,2,2]
[7,"건설과","소하천\n관리위원회","법령","소하천정비법 제26조",null,{"$f":"H13+I13","v":10},2,8,0,0,0,1,3]
[8,"건축과","공동주택\n(관리)분쟁조정위원회","법령","공동주택관리법 제80조(지방분쟁조정위원회)","공동주택관리법 시행령 제87조",8,1,7,1,0,1,0,2]
[9,"건축과","공동주택\n지원심의위원회","조례","여수시 공동주택 조례 제7조",null,9,2,7,3,0,3,2,2]
[10,"건축과","임대주택분쟁조정위원회","법령","민간임대주택에 관한 특별법 제55조",null,10,2,8,5,0,5,0,2]
[11,"건축과","청년임대주택 지원위원회","조례","여수시 청년·신혼부부 여수형 임대주택 보증금 지원 조례 제4조",null,9,4,5,3,0,3,1,2]
[12,"경제일자리과","공정무역위원회","조례",null,"여수시 공정무역 육성 및 지원에 관한 조례 제9조",7,5,2,3,0,3,1,2]
[13,"경제일자리과","기업지원\n대책위원회","조례","여수시 기업사랑 및 기업활동 지원에 관한 조례 제16조",null,10,2,8,4,0,4,1,2]
[14,"경제일자리과","사회적경제육성위원회","조례","여수시 사회적경제 육성과 지원에 관한 조례 제7조",null,15,5,10,5,0,5,1,2]
[15,"경제일자리과","소비자정책심의위원회","조례","여수시 소비자보호 조례 제6조",null,{"$f":"H21+I21","v":16},3,13,null,null,4,2,2]
[16,"경제일자리과","여수시 소상공인지원심의위원회","조례","여수시 소상공인지원에 관한 조례 제9조",null,9,2,7,2,0,2,1,2]
[17,"경제일자리과","유통분쟁조정위원회","법령","유통산업발전법 제36조","여수시 유통분쟁조정위원회 설치 및 운영에 관한 조례",{"$f":"H23+I23","v":11},3,8,null,null,1,1,2]
[18,"경제일자리과","유통업상생발전협의회","법령","유통산업발전법 제7조의5","여수시 유통업 상생발전 및 전통상업보존구역 지정 등에 관한 조례",{"$f":"H24+I24","v":11},2,9,null,null,1,0,2]
[19,"경제일자리과","중소기업발전기금운용위원회","조례","여수시 중소기업 발전기금 설치 및 운용조례 제3조",null,11,2,9,1,null,1,4,2]
[20,"경제일자리과","지역경제협의회","기타","여수시 지역경제협의회 운영에 관한 조례"]
[21,"경제일자리과","생활임금위원회","조례","여수시 생활임금 조례",null,8,2,6,2,0,2,1,2]
[22,"경제일자리과","소비자정책실무위원회","조례","여수시 소비자보호 조례 제10조",null,{"$f":"H28+I28","v":10},2,8,null,null,5,0,2]
[23,"경제일자리과","일자리 위원회","조례","여수시 일자리 정책 기본 조례",null,12,3,9,1,0,1,2,2]
[24,"공원과","도시공원위원회","법령","도시공원 및 녹지 등에 관한 법률 제50조제2항","여수시 공원위원회 조례",12,5,7,6,0,6,2,2]
[25,"관광과","관광진흥기금심의위원회","법령","지방자치단체 기금관리기본법 제13조","여수시 관광진흥기금 설치 및 운용 조례 제11조",7,2,5,2,0,2,1,2]
[26,"관광과","마이스산업지원위원회","조례","여수시 마이스산업 육성에 관한 조례 제9조",null,13,2,11,2,0,2,2,2]
[27,"교통과","교통안전정책 심의위원회","법령","교통안전법 제13조교통안전법 시행령 제8조","여수시 교통안전정책심의위원회 \n구성 및 운영에 관한 조례 제1조",20,7,13,1,0,1,1,3]
[28,"교통과","교통약자이동편의증진위원회","법령","교통약자의 이동편의 증진법 제16조","여수시 교통약자의 이동편의 증진 조례 제1조",15,6,9,3,1,2,2,2]
[29,"교통과","교통영향평가심의위원회","법령","도시교통정비촉진법 제19조",null,23,3,20,4,0,4,0,2]
[30,"교통과","교통유발부담금 경감심의위원회","조례","여수시 교통유발부담금 경감 등에 관한 조례 제12조",null,9,4,5,1,1,0,1,2]
[31,"교통과","교통정책\n발전위원회","조례","여수시 교통정책발전위원회 구성 및 운영 조례 제1조",null,15,4,11,3,0,3,3,2]
[32,"교통과","택시감차위원회","법령","택시운송사업의 발전에 관한 법률 제11조\n택시운송사업의 발전에 관한 법률 시행령 제11조",null,9,2,7,2,1,1,1,2]
[33,"기술보급과","종자심의위원회","조례","여수시 종자산업육성 및 직무육성품종 지원 등에 관한 조례 제3조",null,11,3,8,6,2,4,2,2]
[34,"기획예산과","규제개혁위원회","법령","행정규제기본법제3조","여수시 규제개혁위원회 설치 및 운영 조례",20,8,12,3,0,3,1,2]
[35,"기획예산과","시정평가위원회","법령","정부업무평가 기본법 제18조","여수시 주요업무등의 평가에 관한 규칙",15,1,14,4,0,4,1,2]
[36,"기획예산과","예산성과금\n심사위원회","법령","지방재정법 제48조","여수시 예산성과금 운영 등에 관한 규칙 제6조",10,7,3,1,0,1,1,2]
[37,"기획예산과","용역과제심의위원회","조례","행정업무의 운영 및 혁신에 관한 규정 제50조","여수시 연구용역 관리 조례 제3조",15,4,11,3,0,3,1,2]
[38,"기획예산과","주민참여예산위원회","법령","지방재정법 제39조","여수시  주민참여예산제 운영 조례 시행규칙 제4조",59,0,59,12,0,12,0,2]
[39,"기획예산과","지방보조금 관리위원회","법령","지방재정법 제32의3","여수시  지방보조금 관리 조례 제6조",15,3,12,4,0,4,0,2]
[40,"기획예산과","지방재정계획심의위원회","법령","지방재정법 제33조","여수시  지방재정계획심의위원회 운영 조례",15,3,12,5,0,5,0,2]
[41,"기획예산과","청년참여예산위원회","법령","지방재정법 제39조","여수시 청년 기본 조례",15,0,15,4,0,4,0,2]
[42,"기획예산과","통합재정안정화기금 운용심의위원회","법령","지방자치단체 기금관리기본법 제13조","여수시 통합재정안정화기금 설치 및 운용 조례 제6조",12,6,6,5,1,4,0,2]
[43,"기획예산과","지속가능발전위원회","법령","지속가능발전 기본법 제20조","여수시 지속가능발전 기본 조례 제12조",25,4,21,5,0,5,2,2]
[44,"기획예산과","출자출연기관 운용심의위원회","법령","지방자치단체 출자출연기관의 운영에 관한 법률","여수시 출자출연기관 운영에 관한 조례",13,3,10,3,0,3,0,2]
[45,"기획예산과","여수시정조정위원회","조례","여수시 시정조정위원회 조례","여수시 시정조정위원회 조례",13,13,null,2,2,null,0,"재직중 계속"]
[46,"기획예산과","조례규칙심의회","법령","지방자치법 시행령 제28조","여수시 조례·규칙심의회 운영 규칙 제2조",14,14,0,2,2,null,0,"재직중 계속"]
[47,"기획예산과","여수시 소송심의위원회","법령","지방자치법 제28조","여수시 고문변호사 운영 조례 제8~9조",9,3,6,3,1,2,2,2]
[48,"기후생태과","환경정책위원회","법령","환경정책기본법 제58조","여수시 환경기본 조례 제18조"]
[49,"노인장애인과","장기요양기관 지정심사위원회","규칙","노인장기요양보험법 시행규칙 제23조","여수시 장기요양기관 지정 심사위원회 구성 및 운영 규칙 제2조",5,1,4,3,0,3,0,2]
[50,"노인장애인과","무장애도시실무위원회","법령","장애인.노인.임산부등의 편의증진 보장에관한법률","여수시무장애도시조성조례",19,8,11,12,3,9,0,2]
[51,"노인장애인과","무장애도시추진위원회","법령","장애인.노인.임산부등의 편의증진 보장에관한법률","여수시무장애도시조성조례",15,4,11,7,0,7,2,2]
[52,"노인장애인과","장애인복지위원회","법령","장애인복지법 제13조","여수시 장애인복지위원회 설치 및 운영조례",18,2,16,8,0,8,1,2]
[53,"노인장애인과","장애인활동지원\n수급자격심의위원회","법령","장애인활동지원에관한볍률",null,7,1,6,4,1,3,0,3]
[54,"노인장애인과","여수시 노인일자리 및 사회활동 지원사업 위원회","법령","노인일자리 및 사회활동 지원에 관한 법률","여수시 각종 위원회 구성 및 운영 조례",7,2,5,3,0,3,1,2]
[55,"농산물유통과","농산물공동상표\n사용심의위원회","조례","여수시 농산물 공동상표 사용에 관한 조례",null,10,1,9,3,1,2,1,2]
[56,"농산물유통과","친환경무상급식지원심의위원회","조례","여수시 친환경 무상급식 지원에 관한 조례 제8조",null,18,3,15,10,2,8,2,2]
[57,"농산물유통과","여수시먹거리보장위원회","조례","여수시먹거리보장기본조례",null,20,4,16,6,1,5,2,2]
[58,"농업정책과","농어민 공익수당 위원회","조례","여수시 농어민 공익수당 지급 조례",null,14,5,9,null,0,2,1,2]
[59,"농업정책과","농업·농촌 및 식품산업정책심의회","법령","농업농촌및식품산업기본법제15조, 시행령제15조",null,28,3,25,7,1,6,0,2]
[60,"농업정책과","여수시 농지심의위원회","법령","농지법 제44조,제45조,제46조",null,13,0,13,0,0,0,0,2]
[61,"농촌진흥과","귀농어·귀촌 지원위원회","법령","귀농어·귀촌 활성화 및 지원에 관한 법률","여수시 귀농어귀촌 활성화 및 지원 조례 제4조",14,2,12,5,1,4,0,2]
[62,"농촌진흥과","농기계 임대사업 및 \n농업인대학 운영위원회","법령","농업기계화촉진법, 농촌진흥법","여수시 농기계 임대사업 운영 조례 15조, 여수시 농업인대학 설치 및 운영조례 제4조",9,6,3,4,3,1,1,2]
[63,"농촌진흥과","농업산학\n협동심의회","법령","농업산학협동심의회 규정\n(대통령령 30368호)제2조",null,20,1,19,"-",1,"-",1,2]
[64,"농촌진흥과","도시농업육성위원회","법령","도시농업의 육성 및 지원에 관한 법률",null,10,1,9,5,1,4,2,2]
[65,"도로시설관리과","도로관리심의회","법령","도로법시행령 제63조","여수시 각종 위원회 구성 및 운영조례 제6조",21,10,11,2,0,2,1,2]
[66,"도로시설관리과","자전거이용활성화위원회","법령","자전거이용활성화에 관한 법률 제4조","여수시 자전거 활성화에 관한 조례 제 25조",10,4,6,3,1,2,1,2]
[67,"도서운영과","시립도서관운영및독서문화진흥위원회","조례","여수시립도서관 운영 및 독서문화 진흥조례",null,12,1,11,6,null,6,1,2]
[68,"도서운영과","여수시지역서점위원회","조례","여수시 지역서점 활성화 및 지원에 관한 조례",null,10,2,8,5,null,5,1,2]
[69,"도시계획과","경관위원회","법령","경관법 시행령 제25조","여수시 경관 조례 제23조의2 ",25,3,22,8,0,8,2,2]
[70,"도시계획과","도시계획위원회","법령","국토의 계획 및 이용에 관한 법률 제113조",null,25,3,22,5,0,5,2,2]
[71,"도시계획과","지명위원회","법령","공간정보의 구축 및 관리에 관한 법률","여수시 지명위원회 조례",9,2,7,3,0,3,1,3]
[72,"도시계획과","지역건설산업활성화위원회","조례","여수시 지역건설산업 활성화 촉진에 관한 조례 제11조",null,11,2,9,"-","-","-","-",2]
[73,"도시재생과","도시재생위원회","법령","도시재생 활성화 및 지원에 관한 특별법 제8조","여수시 도시재생 활성화 및 지원에 관한 조례 제6조",18,6,12,5,null,5,2,3]
[74,"도시재생과","옥외광고심의위원회","법령","옥외광고물 등의 관리와 옥외광고산업 진흥에 관한 법률 제7조","여수시 옥외광고물 등의 관리와 옥외광고산업 진흥에 관한 조례 제12조",12,3,9,3,0,3,1,2]
[75,"문화예술과","문화예술위원회","조례",null,"여수시 문화예술 진흥 조례",20,2,18,4,0,4,2,2]
[76,"문화예술과","시립국악단운영위원회","조례",null,"여수시립예술단 설치 조례 제4조",11,4,7,3,1,2,2,2]
[77,"문화예술과","시립합창단운영위원회","조례",null,"여수시립예술단 설치 조례 제4조",11,4,7,4,1,3,2,2]
[78,"문화예술과","축제운영위원회","조례",null,"여수시 축제위원회 설치 및 운영 조례 제3조",15,2,13,6,0,6,2,2]
[79,"문화유산과","문화유산위원회","조례","여수시 문화유산보호관리조례",null,11,1,10,3,0,3,2,2]
[80,"문화유산과","여수시립박물관 건립 추진위원회","조례","여수시립박물관 건립 추진위원회 설치 및 운영 조례 제2조",null,16,1,15,3,0,3,2,2]
[81,"문화유산과","여수시립미술관 건립 추진위원회","조례","여수시립미술관 건립추진위원회 설치 및 운영 조례",null,12,2,10,1,0,1,1,2]
[82,"문화유산과","여수민속전시관 운영위원회","법령","박물관 및 미술관 진흥법 제7조","여수민속전시관 관리 운영 조례 제6조 및 제31조",10,1,9,2,0,2,1,4]
[83,"민원지적과","경계결정위원회","법령","지적재조사에 관한 특별법","여수시 지적재조사위원회 및 경계결정위원회 구성과 운영에 관한 조례",11,6,5,2,null,2,1,2]
[84,"민원지적과","민원조정위원회","법령","민원처리법 제34조",null,11,5,6,3,null,3,1,2]
[85,"민원지적과","부동산가격공시위원회","법령","부동산 가격공시에 관한 법률 제25조","여수시 부동산가격공시위원회 운영 조례 제2조",15,6,9,4,null,4,1,3]
[86,"민원지적과","정보공개\n심의위원회","법령","정보공개법 제22조","여수시 정보공개 조례 제8조",7,2,5,0,null,0,1,2]
[87,"민원지적과","지적재조사위원회","법령","지적재조사에 관한 특별법","여수시 지적재조사위원회 및 경계결정위원회 구성과 운영에 관한 조례",10,5,5,2,null,2,1,2]
[88,"민원지적과","여수시 행정서비스헌장위원회","기타","행정서비스헌장 규정","여수시 행정서비스헌장 제정 및 운영규정",{"$f":"H94+I94","v":9},3,6,null,null,3,1,2]
[89,"보건행정과","보건의료심의위원회","법령","지역보건법 시행령 제3조","여수시 보건의료심의위원회 설치 및 운영조례 제3조",11,2,9,5,1,4,2,2]
[90,"사회복지과","긴급지원\n심의위원회","법령","긴급복지지원법 제12조","긴급복지지원법 시행규칙 제5조",10,3,7,3,0,3,1,3]
[91,"사회복지과","노숙인 입·퇴소심사위원회","법령","노숙인 등의 복지 및 자립지원에 관한 법률 제 17조",null,6,3,3,1,0,1,0,2]
[92,"사회복지과","생활\n보장위원회","법령","국민기초생활보장법",null,13,5,8,6,1,5,1,2]
[93,"사회복지과","의료급여\n심의위원회","법령","「의료급여법」제6조(의료급여심의위원회)",null,5,3,2,3,1,2,0,3]
[94,"사회복지과","처우개선위원회","법령","｢사회복지사 등의 처우 및 지위 향상을 위한 법률｣ 제3조의 2","｢여수시 사회복지사 등의 처 우 및 지위 향상에 관한 조례｣ 제12조",11,4,7,3,1,2,1,2]
[95,"사회복지과","지역케어위원회","조례","「여수시 지역사회 노인 통합 돌봄 지원 조례」 제6조",null,30,7,23,16,12,4,0]
[96,"사회복지과","지역사회\n보장협의체","법령","｢사회보장급여의 이용ㆍ제공 및 수급권자 발굴에 관한 법률｣ 제14조, 제41조, 시행규칙 제5조, 제6조, 제7조","｢여수시 지역사회보장협의체 설치 및 운영 조례｣ 제5조",30,7,23,11,2,9,2,2]
[97,"산단환경관리과","여수국가산단 환경.안전 통합관제센터협의회","조례","여수국가산단 환경.안전 통합관제센터 설치 및 운영 조례 제 9조",null,12,2,10,{"$nulls":3},2,3]
[98,"산단환경관리과","화학물질안전관리위원회","법령","화학물질관리법 제7조의2","여수시 화학물질 안전관리 및 지역사회 알권리 조례",14,3,11,{"$nulls":3},2,3]
[99,"산림과","도시숲 등의 조성관리 심의위원회","법령","도시숲 등의 조성 및 관리에 관한 법률 제13조","여수시 도시숲 등의 조성 및 관리에 관한 조례 제18조",12,5,7,4,2,2,2,2]
[100,"산림과","산사태취약지역지정위원회","법령","「산림보호법」제45조의 9","여수시 산사태취약지역지정위원회의 구성 및 운영에 관한 조례 제4조",8,3,5,2,1,1,2,2]
[101,"산림과","정원문화 진흥위원회","조례","수목원·정원의 조성 및 진흥에 관한 법률","여수시 정원문화 조성 및 진흥에 관한 조례 ",10,2,8,5,1,4,2,2]
[102,"산업지원과","노사민정협의회","법령","노사관계 발전 지원에 관한 법률","여수시 노사민정협의회 설치 및 운영 조례",15,1,14,0,0,0,1,2]
[103,"산업지원과","투자유치위원회","조례","여수시 투자유치촉진을 위한 지원 조례 제26조",null,15,2,13,3,0,3,2,2]
[104,"상수도과","수돗물평가위원회","법령","수도법 제30조","여수시 수돗물평가위원회 운영 조례 제3조",13,2,11,5,null,5,1,2]
[105,"섬박람회지원과","자원봉사\n발전위원회","법령","자원봉사활동 기본법 제8조","여수시 자원봉사활동 지원 조례 제5조 및 시행규칙 제2조",12,2,10,4,null,4,1,2]
[106,"세정과","지방세심의위원회","법령","지방세기본법 제147조",null,19,4,15,3,0,3,0,2]
[107,"수산경영과","수산조정위원회","법령","수산업법",null,15,2,13,0,0,0,0,4]
[108,"수산경영과","청정농수산물등록상표사용심의위원회","조례","여수시 청정농수산물 등록상표 사용 관리 조례",null,12,3,9,1,null,1,0,2]
[109,"스마트정보과","소프트웨어사업 과업심의위원회","법령","소프트웨어진흥법 제50조",null,6,1,5,0,0,0,0,2]
[110,"스마트정보과","지능정보화협의회","법령","지능정보화 기본법 제9조","지능정보화 조례 제5조",10,3,7,1,0,1,2,2]
[111,"스마트정보과","스마트도시사업협의회","법령","스마트도시법 제24조","스마트도시 조성 및 관리 운영조례 제10조",15,3,12,2,0,2,3,2]
[112,"시민소통담당관","여수시청원심의회","법령","청원법제8조","여수시 청원심의회 운영 규정",5,2,3,1,null,1,null,2]
[113,"시민소통담당관","공공갈등관리심의위원회","법령","공공기관갈등예방규정","여수시 갈등예방과 해결에 관한 조례 제10조",15,1,14,4,null,4,2,2]
[114,"시민소통담당관","정책기획자문위원회","법령","지방자치법 제130조","여수시 정책기획자문위원회 설치 및 운영 조례 제2조",20,1,19,8,1,7,1,2]
[115,"식품위생과","식품진흥기금심의위원회","법령","식품위생법 제89조제1항","여수시 식품진흥기금 운용 조례 제3호",6,2,4,4,2,2,1,3]
[116,"식품위생과","위생업소 \n지원 심의위원회","법령","식품위생법 제47조, 공중위생법 제14조","여수시 위생업소 지원 등에 관한 조례 제7조",11,2,9,7,2,5,1,2]
[117,"신산업에너지과","4차 산업혁명 촉진 및 신산업 육성 위원회","조례","여수시 4차 산업혁명 촉진 및 신산업 육성ㆍ지원 조례",null,15,2,13,3,0,3,1,2]
[118,"신산업에너지과","에너지위원회","조례","여수시 에너지 기본조례",null,15,3,12,2,0,2,1,2]
[119,"신산업에너지과","해상풍력발전 민관협의회","조례","여수시 지속가능한 해상풍력에너지 체계적 개발 등에 관한 조례","신·재생에너지 집적화단지 조성·지원 등에 관한 지침 제5조 제1항",30,4,26,2,1,1,2,2]
[120,"신산업에너지과","발전소주변지역지원사업 심의위원회","법령","발전소주변지역 지원에 관한 법률","발전소주변지역 지원에 관한 법률 시행령",12,3,9,3,0,3,2,2]
[121,"안전총괄과","산업안전보건위원회","법령","산업안전보건법 제24조, 동법 시행령","여수시청 근로자 안전보건관리 규정 제10조",16,16,0,6,6,0,0,"재직기간"]
[122,"안전총괄과","안전관리위원회","법령","재난및안전관리기본법","제11조",25,25,0,2,2,0,1,"재임기간"]
[123,"안전총괄과","재난관리기금운용심의위원회","법령","재난 및 안전관리기본법","여수시재난관리기금운용관리조례",9,5,4,1,1,0,1,2]
[124,"안전총괄과","재해영향평가심의위원회","법령","자연재해대책법 제4조","여수시 재해영향평가심의위원회 설치 및 운영 규칙",20,2,18,0,0,0,0,2]
[125,"안전총괄과","통합방위협의회","법령","통합방위법 제5조","여수시  통합방위협의회 구성 및 운영 등에 관한 조례(제3조)",25,13,12,12,1,11,1,"당연직-재임기간\n위촉직-2년"]
[126,"어업생산과","적조대책위원회","규칙","적조 예찰예보 및 피해방지에 관한 요령 제6조(해양수산부훈령 제689호)",null,13,3,10,2,0,2,0,3]
[127,"어업생산과","상괭이보호위원회","조례","여수시 상괭이 보호에 관한 조례 제4조",null,11,3,8,1,0,1,2,2]
[128,"여성가족과","건강가정.다문화가족.외국인주민 지원협의회","조례"," · 건강가정기본법 제21조, 제35조\n · 다문화가족지원법 제6조, 제12조\n · 재한외국인 처우 기본법 제18조","여수시 건강가정.다문화가족.외국인주민 통합지원조례 제6조",13,2,11,7,1,6,1,2]
[129,"여성가족과","드림스타트 운영위원회","법령","아동복지법 제37조",null,10,2,8,4,0,4,1,2]
[130,"여성가족과","보육정책위원회","법령","영유아보육법제6조","여수시영유아보육조례 제2,3조",15,2,13,9,1,8,0,2]
[131,"여성가족과","성별영향평가위원회","법령","성별영향평가법 제13조의2","여수시 성별영향평가조례 제12조",11,4,7,6,2,4,2,2]
[132,"여성가족과","아동급식위원회","법령","아동복지법 시행령 제36조","여수시 아동급식지원 조례",{"$f":"H138+I138","v":10},2,8,{"$f":"K138+L138","v":7},1,6,1,3]
[133,"여성가족과","아동복지심의위원회","법령","아동복지법 제12조","여수시 아동복지심의위원회 구성 및 운영 등에 관한 조례",{"$f":"H139+I139","v":12},3,9,{"$f":"K139+L139","v":3},1,2,1,2]
[134,"여성가족과","아동청소년육성위원회","법령","청소년기본법 제11조","여수시 아동∙청소년육성위원회 등 구성 \n및 운영에 관한 조례 제2조",{"$f":"H140+I140","v":8},2,6,{"$f":"K140+L140","v":4},0,4,1,3]
[135,"여성가족과","양성평등위원회","법령","양성평등기본법 제11조","여수시양성평등기본조례제23조",13,2,11,6,null,6,1,2]
[136,"여성가족과","여성친화도시조성 위원회","조례","여수시 여성친화도시 조성에 관한 기본조례 제25조",null,15,3,12,7,0,7,2,2]
[137,"여성가족과","여수시 아동친화도시 추진위원회","조례","아동복지법 제4조","여수시 아동친화도시 조성에 관한 조례 제12조",15,3,12,5,1,4,2,2]
[138,"여성가족과","지역돌봄협의체","조례","여수시 다함께 돌봄사업 지원에 관한 조례 제9조",null,11,2,9,8,0,8,1,3]
[139,"여성가족과","청소년복지심의위원회","법령","청소년복지지원법 제 10조",null,14,4,10,6,0,6,0,2]
[140,"여성가족과","지역아동센터위원회","조례","여수시 지역아동센터 운영 및 지원에 관한 조례 제8조",null,11,4,7,6,3,3,2,2]
[141,"여성가족과","학교폭력대책지역협의회","법령","학교폭력예방 및 \n대책에 관한 법률 \n제 10조의 2",null,12,3,9,{"$f":"K147+L147","v":4},1,3,1,2]
[142,"자원순환과","순환경제촉진위원회","법령","자원순환기본법","여수시 자원순환기본조례",13,2,11,5,0,5,2,2]
[143,"자원시설과","만흥위생매립장 주변마을 주민지원 협의체","법령","폐기물처리시설 설치촉진 및 주변지역지원 등에 관한 법률 제17조2","여수시 폐기물처리시설 설치운영 및 주변지역 지원등에 관한 조례 제29조",13,0,13,3,0,3,1,2]
[144,"자원시설과","도시형폐기물종합처리시설 주민지원협의체","법령","폐기물처리시설 설치촉진 및 주변지역지원 등에 관한 법률 제17조2","여수시 폐기물처리시설 설치운영 및 주변지역 지원등에 관한 조례 제29조",11,0,11,0,0,0,1,2]
[145,"자원시설과","폐기물처리시설 설치기금운용심의위원회","조례","여수시 폐기물처리시설 설치비용 징수 및 기금운용 조례 제17조",null,10,4,6,3,1,2,1,2]
[146,"자원시설과","폐기물처리시설 주변지역 주민지원기금 운용심의위원회","법령","폐기물처리시설 설치촉진 및 주변지역지원 등에 관한 법률 제21조","여수시 폐기물처리시설 설치운용 및 주변지역 지원등에 관한 조례 제21조",11,5,6,2,2,0,2,2]
[147,"중부민원출장소","주소정보위원회","법령","도로명주소법 제22조의2","여수시 주소정보 등에 관한 조례 제5조",11,6,5,2,null,2,1,2]
[148,"징수과","고향사랑기금 운용심의위원회","법령","고향사랑 기부금에 관한 법률 제11조","여수시 고향사랑 기부금 모금 및 운영에 관한 조례 제10조",8,3,5,3,1,2,1,2]
[149,"징수과","기부심사위원회","법령","기부금품의 모집, 사용 및 기부문화 활성화에 관한 법률 제5조","여수시 기부자 예우에 관한 조례 제5~6조",10,2,8,3,0,3,2,2]
[150,"징수과","답례품 선정위원회","법령","고향사랑 기부금에 관한 법률 시행령 제6조","여수시 고향사랑 기부금 모금 및 운영에 관한 조례 제2조",9,1,8,5,0,5,1,2]
[151,"청년인구정책관","인구정책위원회","조례","여수시 인구정책 기본조례",null,18,1,17,6,0,6,2,2]
[152,"청년인구정책관","청년정책 위원회","조례","여수시청년기본조례 ",null,20,8,12,7,0,7,2,2]
[153,"체육지원과","문화예술\n체육진흥기금\n운용심의위원회","법령","문화예술진흥법 제13조 및 국민체육진흥법 제3조","여수시문화예술체육진흥기금관리조례 제2조",7,7,0,1,1,0,0]
[154,"체육지원과","체육진흥협의회","법령","국민체육진흥법 제5조","여수시체육진흥조례 제5조",15,2,13,0,0,0,2,2]
[155,"총무과","기록물평가심의회","법령","공공기록물 관리에 관한 법률",null,{"$f":"H161+I161","v":5},3,2,{"$nulls":3},0,2]
[156,"총무과","북한이탈주민\n지원협의회","법령","북한이탈주민 보호 및 정착지원에 관한 법률 시행령 제42조의2","여수시 북한이탈주민과 이북도민 지원에 관한 조례 제4조",7,7,null,1,1,null,null,"재임기간"]
[157,"총무과","공적심사위원회","조례","포상 조례 11조",null,13,13,0,2,2,0,0,"재직기간"]
[158,"총무과","공무국외출장심사위원회","기타","공무국외출장 규정",null,12,12,0,1,0,1,0,"재직기간/2년"]
[159,"총무과","안전하고아름다운여수만들기협의회","조례","안전하고 아름다운 여수만들기 협의회 설치 및 운영조례",null,23,9,14,1,0,1,1,2]
[160,"총무과","여수·순천 10·19사건 지역민 희생자 지원사업 시민추진위원회","법령","여수ㆍ순천 10ㆍ19사건 진상규명 및 희생자 명예회복에 관한 특별법","여수시 여수·순천 10·19사건 지역민 희생자 위령사업 지원 등에 관한 조례",21,1,20,2,null,2,2,2]
[161,"총무과","인사위원회","법령","지방공무원법","여수시 지방공무원 인사 규칙"]
[162,"총무과","후생복지운영협의회","법령","지방공무원법 제77조(능률증진을 위한 사항)","여수시 공무원 후생복지에 관한 조례",{"$f":"H168+I168","v":13},4,9,null,0,4,2,2]
[163,"총무과","공익활동촉진위원회","조례","여수시 공익활동 촉진 및 지원에 관한 조례 제6조 1항",null,10,1,9,5,null,5,2,2]
[164,"평생교육과","교육경비보조금심의위원회","조례","지방교육재정교부금법","여수시 교육경비 보조에 관한 조례",15,7,8,3,0,3,3,2]
[165,"평생교육과","교육발전협의회","조례","여수시 교육발전협의회 구성 및 운영조례"]
[166,"평생교육과","지방대학지원사업심의위원회","법령","지방대학 및 지역균형인재 육성에 관한 법률","여수시 지방대학 및 지역균형인재 육성에 관한 지원조례 제6조",11,9,2,4,null,4,1,2]
[167,"평생교육과","평생교육협의회","법령","평생교육법 제14조","여수시 평생학습 조례",10,2,8,3,0,3,1,2]
[168,"평생교육과","평생교육실무위원회","조례","여수시평생학습 조례 제14조",null,10,2,8,5,1,4,0,2]
[169,"평생교육과","행복교육지원센터 운영위원회","조례","교육기본법, 인성교육진흥법, 진로교육법","여수시창의인성교육 활성화 및 지원에 관한 조례",10,3,7,4,1,3,1,2]
[170,"하수도과","공공하수 처리시설 관리대행 성과평가위원회","법령","하수도법 시행령 제15조의4","공공하수도 관리대행업자 선정 및 대행성과 평가(환경부 고시 제2023-235)",7,null,7,0,null,0,0,2]
[171,"해양정책과","요트마리나 시설관리 운영위원회","조례","여수시 요트마리나 시설관리 운영 조례 제28조",null,7,2,5,{"$nulls":3},1,2]
[172,"허가과","건축위원회","법령","건축법","여수시 건축 조례",30,4,26,3,0,3,0,3]
[173,"허가과","분양가심사\n위원회","법령","주택법 제59조",null,10,1,9,3,0,3,0,2]
[174,"홍보담당관","홍보물심의위원회","조례","여수시 홍보물심의위원회 설치 및 운영 조례 제4조 ",null,12,10,2,3,2,1,0,2]
[175,"회계과","계약심의위원회","법령","①지방자치단체를 당사자로 하는 계약에 관한 법률 제32조","②여수시 계약심의의원회 및 주민참여감독자에 관한 조례",9,1,8,3,0,3,0,2]
[176,"회계과","공유재산심의회","법령","공유재산및 물품관리법","여수시 공유재산 관리조례",10,3,7,3,0,3,0,2]
{"$rows_empty":12}
[{"$nulls":11},1]